{"text_format":"1","workbook":"xlsx","n_sheets":3,"sheets":["TeamStates","Ralli","Bird Names"],"not_rendered":{"charts":0,"images":0,"macros":1,"external_links":0,"defined_names":0,"comments":0,"pivot_tables":0},"unopened":[],"bounds":{"document_bytes":16777216,"sheet_cells":100000,"rows_first":2000,"rows_last":500,"rows_between":2000,"halvings":0,"cell_chars":16384,"cell_head_chars":4096},"cells_cut":0,"cells_raw":0,"read":"whole","date_system":"1900"}

{"sheet":"TeamStates","index":0,"n_rows":0,"n_cols":0,"rows_kept":0,"cut":false,"hidden":true,"merged":[]}

{"sheet":"Ralli","index":1,"n_rows":227,"n_cols":15,"rows_kept":227,"cut":false,"hidden":false,"merged":[]}
["Kevätralli 24.–25.2025","Rannalle jääneet","Matkalla pohjoiseen","Jynx torkuilla","Luovon nuoret","Susi jäi päällimmäisenä mieleen","Kolme poikaa ja ilves","kiitos linturyhmään pääsystä","Sotamiehet rannalla","Pölijöt Puusilimät","Unilinnut","Nuotit hukassa","Vain varmat uupuu","JR Team","Yht."]
["Lopputulos",{"$f":"IF(B1<>\"\",B225,\"\")","v":138},154,136,138,146,151,127,152,101,110,107,149,87,{"$f":"80-COUNTIF(OFFSET(INDEX(6:6,MATCH(\"Yht.\",$1:$1,0)),0,0,MATCH(\"Peruslajit I yhteensä\",$A$82:$A$92,0)+76,1),MATCH(\"Yht.\",$A$1:$O$1,0)-2)\n+30-COUNTIF(OFFSET(INDEX(89:89,MATCH(\"Yht.\",$1:$1,0)),0,0,MATCH(\"Peruslajit II yhteensä\",$A$115:$A$125,0)+25,1),MATCH(\"Yht.\",$A$1:$O$1,0)-2)\n+20-COUNTIF(OFFSET(INDEX(122:122,MATCH(\"Yht.\",$1:$1,0)),0,0,MATCH(\"Peruslajit III yhteensä\",$A$138:$A$145,0)+16,1),MATCH(\"Yht.\",$A$1:$O$1,0)-2)\n+COUNTIF(OFFSET(\n    INDEX(A:A,MATCH(\"Huutolajit\",$A$140:$A$228,0)+139),\n    1,\n    MATCH(\"Yht.\",$1:$1,0)-1,\n    MATCH(\"Lopputulos\",$A$145:$A$238,0)+144\n    -MATCH(\"Huutolajit\",$A$140:$A$228,0)-140,\n    1),\">0\")","v":199}]
["Sijoitus",{"$f":"IF(B1<>\"\",RANK(B2,OFFSET($B$2,0,0,1,COUNTA($1:$1)-2))&\".\",\"\")","v":"6."},"1.","8.","6.","5.","3.","9.","2.","12.","10.","11.","4.","13."]
[]
["Peruslajit I"]
["Laulujoutsen",null,null,null,null,null,null,null,null,null,null,null,null,null,{"$f":"COUNTA(OFFSET(B6,0,0,1,COUNTA($B$1:$XFD$1)-COUNTIF($B$1:$XFD$1,\"Yht.\")))","v":0}]
["Merihanhi",null,null,null,null,null,null,null,null,null,null,null,null,null,0]
["Haapana",null,null,null,null,null,null,null,null,null,null,null,null,null,0]
["Tavi",null,null,null,null,null,null,null,null,null,null,null,null,null,0]
["Sinisorsa",null,null,null,null,null,null,null,null,null,null,null,null,null,0]
["Jouhisorsa",null,null,null,null,null,null,null,null,null,null,"x",null,null,1]
["Lapasorsa",null,null,null,null,null,null,null,null,null,null,null,null,null,0]
["Tukkasotka",null,null,null,null,null,null,null,null,null,null,null,null,null,0]
["Mustalintu",null,null,null,null,null,null,null,null,"x",null,null,null,"x",2]
["Telkkä",null,null,null,null,null,null,null,null,null,null,null,null,null,0]
["Tukkakoskelo",null,null,null,null,null,null,null,null,null,null,null,null,null,0]
["Isokoskelo",null,null,null,null,null,null,null,null,null,null,null,null,null,0]
["Teeri",null,null,null,null,null,null,null,null,"x",null,null,null,"x",2]
["Silkkiuikku",null,null,null,null,null,null,null,null,null,null,null,null,null,0]
["Merikotka",null,null,null,null,null,null,null,null,null,null,null,null,null,0]
["Ruskosuohaukka",null,null,null,null,null,null,null,null,null,null,"x",null,null,1]
["Nokikana",null,null,null,null,null,null,null,null,null,null,null,null,null,0]
["Kurki",null,null,null,null,null,null,null,null,null,null,null,null,null,0]
["Meriharakka",null,null,null,null,null,null,null,null,null,null,null,null,null,0]
["Töyhtöhyyppä",null,null,null,null,null,null,null,null,null,null,null,null,null,0]
["Tylli",null,null,null,null,null,null,null,null,null,null,null,null,"x",1]
["Kuovi",null,null,null,null,null,null,null,null,null,null,null,null,null,0]
["Suokukko",null,null,null,null,null,null,null,null,null,null,null,null,null,0]
["Lapinsirri",null,"x",null,null,null,null,null,null,"x","x","x",null,"x",5]
["Rantasipi",null,null,null,null,null,null,null,null,"x",null,null,null,null,1]
["Valkoviklo",null,null,null,null,null,null,null,null,null,null,null,null,null,0]
["Liro",null,null,null,null,null,null,null,null,null,null,null,null,"x",1]
["Punajalkaviklo",null,null,null,null,null,null,null,null,null,null,null,null,null,0]
["Lehtokurppa",null,null,null,null,null,null,null,null,"x",null,null,null,"x",2]
["Taivaanvuohi",null,null,null,null,null,null,null,null,null,null,null,null,null,0]
["Kalatiira",null,null,null,null,null,null,null,null,null,null,null,null,null,0]
["Lapintiira",null,null,null,null,null,null,null,null,null,null,null,null,null,0]
["Pikkulokki",null,null,null,null,null,null,null,null,null,null,null,null,null,{"$f":"COUNTA(OFFSET(B38,0,0,1,COUNTA($B$1:$XFD$1)-COUNTIF($B$1:$XFD$1,\"Yht.\")))","v":0}]
["Naurulokki",null,null,null,null,null,null,null,null,null,null,null,null,null,0]
["Kalalokki",null,null,null,null,null,null,null,null,null,null,null,null,null,0]
["Harmaalokki",null,null,null,null,null,null,null,null,null,null,null,null,null,0]
["Merilokki",null,null,null,null,null,null,null,null,null,null,"x",null,"x",2]
["Kesykyyhky",null,null,null,"x",null,null,null,null,null,null,null,null,null,1]
["Sepelkyyhky",null,null,null,null,null,null,null,null,null,null,null,null,null,0]
["Käki",null,null,null,null,null,null,null,null,"x",null,null,null,null,1]
["Tervapääsky",null,"x",null,null,null,null,null,null,"x","x",null,null,null,3]
["Kiuru",null,null,null,null,null,null,null,null,null,null,null,null,null,0]
["Törmäpääsky",null,null,null,null,null,null,null,null,null,null,null,null,null,0]
["Haarapääsky",null,null,null,null,null,null,null,null,null,null,null,null,null,0]
["Räystäspääsky",null,null,null,null,null,null,null,null,null,null,null,null,null,0]
["Metsäkirvinen",null,null,null,null,null,null,null,null,null,null,null,null,"x",1]
["Niittykirvinen",null,null,null,null,null,null,null,null,"x",null,null,null,"x",2]
["Keltavästäräkki",null,null,null,null,null,null,null,null,null,"x",null,null,"x",2]
["Västäräkki",null,null,null,null,null,null,null,null,null,null,null,null,null,0]
["Punarinta",null,null,null,null,null,null,null,null,null,null,null,null,"x",1]
["Leppälintu",null,null,null,null,null,null,null,null,"x",null,null,null,"x",2]
["Pensastasku",null,null,null,null,null,null,null,null,null,null,null,null,null,0]
["Kivitasku",null,null,null,null,null,null,null,null,null,null,"x",null,null,1]
["Räkättirastas",null,null,null,null,null,null,null,null,null,null,null,null,null,0]
["Laulurastas",null,null,null,null,null,null,null,null,null,null,null,null,null,0]
["Punakylkirastas",null,null,null,null,null,null,null,null,null,null,null,null,null,0]
["Mustarastas",null,null,null,null,null,null,null,null,null,null,null,null,null,0]
["Ruokokerttunen",null,null,null,null,null,null,null,null,null,null,null,null,null,0]
["Hernekerttu",null,null,null,null,null,null,null,null,null,null,null,null,null,0]
["Lehtokerttu",null,null,null,null,null,null,null,null,null,null,null,null,null,0]
["Pajulintu",null,null,null,null,null,null,null,null,null,null,null,null,null,0]
["Tiltalti",null,null,null,null,null,null,null,null,null,null,"x",null,"x",2]
["Harmaasieppo",null,null,null,null,null,null,null,null,null,null,null,null,"x",1]
["Kirjosieppo",null,null,null,null,null,null,null,null,null,null,null,null,null,0]
["Sinitiainen",null,null,null,null,null,null,null,null,null,null,null,null,null,{"$f":"COUNTA(OFFSET(B70,0,0,1,COUNTA($B$1:$XFD$1)-COUNTIF($B$1:$XFD$1,\"Yht.\")))","v":0}]
["Talitiainen",null,null,null,null,null,null,null,null,null,null,null,null,null,0]
["Harakka",null,null,null,null,null,null,null,null,null,null,null,null,null,0]
["Naakka",null,null,null,null,null,null,null,null,null,null,null,null,null,0]
["Varis",null,null,null,null,null,null,null,null,null,null,null,null,null,0]
["Korppi",null,null,null,null,null,null,null,null,null,null,null,null,null,0]
["Kottarainen",null,null,null,null,null,null,null,null,null,null,null,null,null,0]
["Varpunen",null,null,null,null,null,null,null,null,null,null,null,null,null,0]
["Pikkuvarpunen",null,null,null,null,null,null,null,null,null,null,null,null,null,0]
["Peippo",null,null,null,null,null,null,null,null,null,null,null,null,null,0]
["Järripeippo",null,null,null,null,null,null,null,null,null,null,"x",null,"x",2]
["Viherpeippo",null,null,null,null,null,null,null,null,"x","x",null,null,null,2]
["Vihervarpunen",null,null,null,null,null,null,null,null,null,null,null,null,null,0]
["Punavarpunen",null,null,null,null,null,null,null,null,null,null,null,null,"x",1]
["Keltasirkku",null,null,null,null,null,null,null,null,null,null,null,null,null,0]
["Pajusirkku",null,null,null,null,null,null,null,null,null,null,null,null,null,0]
["Peruslajit I yhteensä",{"$f":"80-COUNTA(B6:B85)","v":80},{"$f":"80-COUNTA(C6:C85)","v":78},80,{"$f":"80-COUNTA(E6:E85)","v":79},80,80,80,80,70,76,73,80,64]
[]
["Peruslajit II"]
["Kyhmyjoutsen",null,null,null,null,null,null,null,null,null,null,null,null,null,{"$f":"COUNTA(OFFSET(B89,0,0,1,COUNTA($B$1:$XFD$1)-COUNTIF($B$1:$XFD$1,\"Yht.\")))","v":0}]
["Valkoposkihanhi",null,null,null,"x",null,null,null,null,null,null,null,null,null,1]
["Ristisorsa",null,null,null,null,null,null,null,null,"x",null,null,null,null,1]
["Harmaasorsa",null,null,null,null,null,null,null,null,"x",null,null,null,null,1]
["Heinätavi",null,null,null,null,null,null,null,null,"x",null,null,null,"x",2]
["Pilkkasiipi",null,null,null,null,null,null,null,null,"x","x","x",null,"x",4]
["Fasaani",null,null,null,"x",null,null,null,null,null,null,null,null,null,1]
["Kaakkuri",null,"x","x",null,null,"x","x","x","x","x","x",null,"x",9]
["Kuikka",null,null,null,null,null,null,"x",null,null,"x","x",null,"x",4]
["Mustakurkku-uikku","x",null,null,"x",null,null,null,null,null,"x","x",null,"x",5]
["Merimetso",null,null,null,null,null,null,null,null,null,null,null,null,null,0]
["Kaulushaikara",null,null,null,null,null,null,null,null,null,null,null,null,"x",1]
["Tuulihaukka",null,null,null,null,null,null,null,null,null,null,null,null,null,0]
["Pikkutylli",null,null,null,"x",null,null,null,null,null,"x","x",null,null,3]
["Mustapyrstökuiri",null,null,null,null,null,null,null,null,null,null,null,null,null,0]
["Suosirri","x",null,"x",null,null,null,"x",null,"x",null,"x",null,"x",6]
["Metsäviklo",null,null,null,null,null,null,null,null,null,"x","x",null,"x",3]
["Merikihu",null,null,"x",null,null,null,"x",null,null,null,"x","x","x",5]
["Pikkutiira",null,null,null,null,null,null,"x",null,null,null,"x",null,"x",3]
["Räyskä",null,null,null,null,null,null,null,null,null,null,"x",null,null,1]
["Turkinkyyhky",null,null,null,"x",null,null,null,null,"x",null,null,null,null,2]
["Käpytikka",null,null,null,null,null,null,null,null,null,null,null,null,null,0]
["Rautiainen","x",null,null,null,null,null,null,null,null,null,null,null,"x",2]
["Kulorastas",null,null,null,null,null,null,null,null,"x",null,null,null,"x",2]
["Pensaskerttu",null,null,null,null,null,null,null,null,null,null,null,null,"x",1]
["Mustapääkerttu",null,null,null,null,null,null,null,null,null,"x",null,null,"x",2]
["Sirittäjä",null,null,null,null,null,null,null,null,null,null,null,null,"x",1]
["Hippiäinen",null,null,null,null,null,null,null,null,"x","x",null,null,"x",3]
["Hemppo",null,null,null,"x",null,null,null,null,"x",null,null,null,"x",3]
["Punatulkku",null,null,null,null,null,null,null,null,null,"x",null,null,null,1]
["Peruslajit II yhteensä",{"$f":"30-COUNTA(B89:B118)","v":27},{"$f":"30-COUNTA(C89:C118)","v":29},27,{"$f":"30-COUNTA(E89:E118)","v":24},30,29,25,29,20,21,20,29,13]
[]
["Peruslajit III"]
["Kanadanhanhi",null,null,null,null,null,null,"x",null,null,null,"x","x","x",{"$f":"COUNTA(OFFSET(B122,0,0,1,COUNTA($B$1:$XFD$1)-COUNTIF($B$1:$XFD$1,\"Yht.\")))","v":4}]
["Uivelo","x",null,"x",null,null,"x","x","x","x","x","x",null,"x",9]
["Sääksi","x",null,"x",null,null,"x",null,null,"x","x","x",null,"x",7]
["Nuolihaukka",null,null,"x",null,null,null,null,null,"x","x","x",null,"x",5]
["Varpushaukka",null,null,null,null,"x","x",null,null,"x",null,"x",null,"x",5]
["Sinisuohaukka","x",null,"x",null,null,null,"x","x","x","x","x",null,null,7]
["Luhtakana",null,"x",null,null,null,null,"x",null,"x","x",null,"x","x",6]
["Kapustarinta",null,null,null,"x","x",null,"x",null,"x","x","x","x","x",8]
["Jänkäsirriäinen","x",null,"x",null,null,null,"x",null,"x","x","x",null,"x",7]
["Pikkukuovi","x",null,null,"x",null,null,null,null,"x","x","x",null,"x",6]
["Selkälokki","x",null,"x",null,null,null,"x",null,null,"x",null,null,null,4]
["Uuttukyyhky",null,null,null,null,null,null,"x",null,null,null,null,null,null,1]
["Suopöllö",null,null,null,null,null,null,null,null,"x",null,"x",null,null,2]
["Hömötiainen","x",null,null,null,null,null,"x",null,"x",null,null,null,"x",4]
["Puukiipijä",null,null,null,"x",null,null,null,null,"x",null,"x","x","x",5]
["Mustavaris",null,null,null,"x",null,null,null,null,"x",null,null,null,null,2]
["Närhi",null,null,null,"x",null,"x","x",null,null,null,null,"x","x",5]
["Tikli",null,null,null,"x",null,null,null,null,null,null,null,null,"x",2]
["Urpiainen","x",null,"x","x",null,"x","x","x","x","x",null,"x",null,9]
["Pikkukäpylintu",null,"x","x","x",null,null,"x","x","x","x","x","x","x",10]
["Peruslajit III yhteensä",{"$f":"20-COUNTA(B122:B141)","v":12},{"$f":"20-COUNTA(C122:C141)","v":18},12,12,18,15,8,16,5,{"$f":"20-COUNTA(K122:K141)","v":9},{"$f":"20-COUNTA(L122:L141)","v":8},{"$f":"20-COUNTA(M122:M141)","v":13},{"$f":"20-COUNTA(N122:N141)","v":6}]
[]
["sp / vel-lajit"]
["arosuo/niittysuohaukka","x",null,null,null,null,null,null,null,null,null,null,null,null,{"$f":"COUNTA(OFFSET(B145,0,0,1,COUNTA($B$1:$XFD$1)-COUNTIF($B$1:$XFD$1,\"Yht.\")))","v":1}]
["cavia sp",null,null,null,null,null,null,"x",null,null,null,null,null,null,{"$f":"COUNTA(OFFSET(B146,0,0,1,COUNTA($B$1:$XFD$1)-COUNTIF($B$1:$XFD$1,\"Yht.\")))","v":1}]
["pikku/isokäpylintu",null,null,null,"x"]
["Ponnistustaso",{"$f":"INDEX(B:B, MATCH(\"Peruslajit III yhteensä\", $A$138:$A$145, 0) + 137)\n+INDEX(B:B, MATCH(\"Peruslajit II yhteensä\", $A$115:$A$125, 0) + 114)\n+INDEX(B:B, MATCH(\"Peruslajit I yhteensä\", $A$82:$A$92, 0) + 81)\n+COUNTA(OFFSET(\n    INDEX(B:B, MATCH(\"sp / vel-lajit\", $A$140:$A$151, 0) + 139),\n    1, 0,\n    MATCH(\"Ponnistustaso\", $A$143:$A$226, 0) + 142\n    - MATCH(\"sp / vel-lajit\", $A$140:$A$151, 0) - 140,\n    1\n  ))","v":120},{"$f":"INDEX(C:C, MATCH(\"Peruslajit III yhteensä\", $A$138:$A$145, 0) + 137)\n+INDEX(C:C, MATCH(\"Peruslajit II yhteensä\", $A$115:$A$125, 0) + 114)\n+INDEX(C:C, MATCH(\"Peruslajit I yhteensä\", $A$82:$A$92, 0) + 81)\n+COUNTA(OFFSET(\n    INDEX(C:C, MATCH(\"sp / vel-lajit\", $A$140:$A$151, 0) + 139),\n    1, 0,\n    MATCH(\"Ponnistustaso\", $A$143:$A$226, 0) + 142\n    - MATCH(\"sp / vel-lajit\", $A$140:$A$151, 0) - 140,\n    1\n  ))","v":125},{"$f":"INDEX(D:D, MATCH(\"Peruslajit III yhteensä\", $A$138:$A$145, 0) + 137)\n+INDEX(D:D, MATCH(\"Peruslajit II yhteensä\", $A$115:$A$125, 0) + 114)\n+INDEX(D:D, MATCH(\"Peruslajit I yhteensä\", $A$82:$A$92, 0) + 81)\n+COUNTA(OFFSET(\n    INDEX(D:D, MATCH(\"sp / vel-lajit\", $A$140:$A$151, 0) + 139),\n    1, 0,\n    MATCH(\"Ponnistustaso\", $A$143:$A$226, 0) + 142\n    - MATCH(\"sp / vel-lajit\", $A$140:$A$151, 0) - 140,\n    1\n  ))","v":119},{"$f":"INDEX(E:E, MATCH(\"Peruslajit III yhteensä\", $A$138:$A$145, 0) + 137)\n+INDEX(E:E, MATCH(\"Peruslajit II yhteensä\", $A$115:$A$125, 0) + 114)\n+INDEX(E:E, MATCH(\"Peruslajit I yhteensä\", $A$82:$A$92, 0) + 81)\n+COUNTA(OFFSET(\n    INDEX(E:E, MATCH(\"sp / vel-lajit\", $A$140:$A$151, 0) + 139),\n    1, 0,\n    MATCH(\"Ponnistustaso\", $A$143:$A$226, 0) + 142\n    - MATCH(\"sp / vel-lajit\", $A$140:$A$151, 0) - 140,\n    1\n  ))","v":116},{"$f":"INDEX(F:F, MATCH(\"Peruslajit III yhteensä\", $A$138:$A$145, 0) + 137)\n+INDEX(F:F, MATCH(\"Peruslajit II yhteensä\", $A$115:$A$125, 0) + 114)\n+INDEX(F:F, MATCH(\"Peruslajit I yhteensä\", $A$82:$A$92, 0) + 81)\n+COUNTA(OFFSET(\n    INDEX(F:F, MATCH(\"sp / vel-lajit\", $A$140:$A$151, 0) + 139),\n    1, 0,\n    MATCH(\"Ponnistustaso\", $A$143:$A$226, 0) + 142\n    - MATCH(\"sp / vel-lajit\", $A$140:$A$151, 0) - 140,\n    1\n  ))","v":128},{"$f":"INDEX(G:G, MATCH(\"Peruslajit III yhteensä\", $A$138:$A$145, 0) + 137)\n+INDEX(G:G, MATCH(\"Peruslajit II yhteensä\", $A$115:$A$125, 0) + 114)\n+INDEX(G:G, MATCH(\"Peruslajit I yhteensä\", $A$82:$A$92, 0) + 81)\n+COUNTA(OFFSET(\n    INDEX(G:G, MATCH(\"sp / vel-lajit\", $A$140:$A$151, 0) + 139),\n    1, 0,\n    MATCH(\"Ponnistustaso\", $A$143:$A$226, 0) + 142\n    - MATCH(\"sp / vel-lajit\", $A$140:$A$151, 0) - 140,\n    1\n  ))","v":124},{"$f":"INDEX(H:H, MATCH(\"Peruslajit III yhteensä\", $A$138:$A$145, 0) + 137)\n+INDEX(H:H, MATCH(\"Peruslajit II yhteensä\", $A$115:$A$125, 0) + 114)\n+INDEX(H:H, MATCH(\"Peruslajit I yhteensä\", $A$82:$A$92, 0) + 81)\n+COUNTA(OFFSET(\n    INDEX(H:H, MATCH(\"sp / vel-lajit\", $A$140:$A$151, 0) + 139),\n    1, 0,\n    MATCH(\"Ponnistustaso\", $A$143:$A$226, 0) + 142\n    - MATCH(\"sp / vel-lajit\", $A$140:$A$151, 0) - 140,\n    1\n  ))","v":114},{"$f":"INDEX(I:I, MATCH(\"Peruslajit III yhteensä\", $A$138:$A$145, 0) + 137)\n+INDEX(I:I, MATCH(\"Peruslajit II yhteensä\", $A$115:$A$125, 0) + 114)\n+INDEX(I:I, MATCH(\"Peruslajit I yhteensä\", $A$82:$A$92, 0) + 81)\n+COUNTA(OFFSET(\n    INDEX(I:I, MATCH(\"sp / vel-lajit\", $A$140:$A$151, 0) + 139),\n    1, 0,\n    MATCH(\"Ponnistustaso\", $A$143:$A$226, 0) + 142\n    - MATCH(\"sp / vel-lajit\", $A$140:$A$151, 0) - 140,\n    1\n  ))","v":125},{"$f":"INDEX(J:J, MATCH(\"Peruslajit III yhteensä\", $A$138:$A$145, 0) + 137)\n+INDEX(J:J, MATCH(\"Peruslajit II yhteensä\", $A$115:$A$125, 0) + 114)\n+INDEX(J:J, MATCH(\"Peruslajit I yhteensä\", $A$82:$A$92, 0) + 81)\n+COUNTA(OFFSET(\n    INDEX(J:J, MATCH(\"sp / vel-lajit\", $A$140:$A$151, 0) + 139),\n    1, 0,\n    MATCH(\"Ponnistustaso\", $A$143:$A$226, 0) + 142\n    - MATCH(\"sp / vel-lajit\", $A$140:$A$151, 0) - 140,\n    1\n  ))","v":95},{"$f":"INDEX(K:K, MATCH(\"Peruslajit III yhteensä\", $A$138:$A$145, 0) + 137)\n+INDEX(K:K, MATCH(\"Peruslajit II yhteensä\", $A$115:$A$125, 0) + 114)\n+INDEX(K:K, MATCH(\"Peruslajit I yhteensä\", $A$82:$A$92, 0) + 81)\n+COUNTA(OFFSET(\n    INDEX(K:K, MATCH(\"sp / vel-lajit\", $A$140:$A$151, 0) + 139),\n    1, 0,\n    MATCH(\"Ponnistustaso\", $A$143:$A$226, 0) + 142\n    - MATCH(\"sp / vel-lajit\", $A$140:$A$151, 0) - 140,\n    1\n  ))","v":106},{"$f":"INDEX(L:L, MATCH(\"Peruslajit III yhteensä\", $A$138:$A$145, 0) + 137)\n+INDEX(L:L, MATCH(\"Peruslajit II yhteensä\", $A$115:$A$125, 0) + 114)\n+INDEX(L:L, MATCH(\"Peruslajit I yhteensä\", $A$82:$A$92, 0) + 81)\n+COUNTA(OFFSET(\n    INDEX(L:L, MATCH(\"sp / vel-lajit\", $A$140:$A$151, 0) + 139),\n    1, 0,\n    MATCH(\"Ponnistustaso\", $A$143:$A$226, 0) + 142\n    - MATCH(\"sp / vel-lajit\", $A$140:$A$151, 0) - 140,\n    1\n  ))","v":101},{"$f":"INDEX(M:M, MATCH(\"Peruslajit III yhteensä\", $A$138:$A$145, 0) + 137)\n+INDEX(M:M, MATCH(\"Peruslajit II yhteensä\", $A$115:$A$125, 0) + 114)\n+INDEX(M:M, MATCH(\"Peruslajit I yhteensä\", $A$82:$A$92, 0) + 81)\n+COUNTA(OFFSET(\n    INDEX(M:M, MATCH(\"sp / vel-lajit\", $A$140:$A$151, 0) + 139),\n    1, 0,\n    MATCH(\"Ponnistustaso\", $A$143:$A$226, 0) + 142\n    - MATCH(\"sp / vel-lajit\", $A$140:$A$151, 0) - 140,\n    1\n  ))","v":122},{"$f":"INDEX(N:N, MATCH(\"Peruslajit III yhteensä\", $A$138:$A$145, 0) + 137)\n+INDEX(N:N, MATCH(\"Peruslajit II yhteensä\", $A$115:$A$125, 0) + 114)\n+INDEX(N:N, MATCH(\"Peruslajit I yhteensä\", $A$82:$A$92, 0) + 81)\n+COUNTA(OFFSET(\n    INDEX(N:N, MATCH(\"sp / vel-lajit\", $A$140:$A$151, 0) + 139),\n    1, 0,\n    MATCH(\"Ponnistustaso\", $A$143:$A$226, 0) + 142\n    - MATCH(\"sp / vel-lajit\", $A$140:$A$151, 0) - 140,\n    1\n  ))","v":83}]
[]
["Huutolajit"]
["Luhtahuitti","x","x","x",null,null,"x","x","x",null,"x",null,"x",null,{"$f":"COUNTA(OFFSET(B151,0,0,1,COUNTA($B$1:$XFD$1)-COUNTIF($B$1:$XFD$1,\"Yht.\")))","v":8}]
["Pyy",null,"x","x",null,null,"x","x",null,null,null,null,null,null,4]
["Sinirinta","x",null,"x",null,null,"x","x","x",null,"x","x","x",null,8]
["Alli",null,null,null,"x",null,null,null,null,null,null,null,null,null,1]
["Viitakerttunen","x","x","x","x","x","x","x","x","x","x","x","x",null,12]
["Taigametsähanhi",null,"x","x",null,"x","x","x","x",null,null,null,"x","x",8]
["Kuusitiainen","x",null,null,null,null,"x","x","x",null,null,null,null,null,{"$f":"COUNTA(OFFSET(B157,0,0,1,COUNTA($B$1:$XFD$1)-COUNTIF($B$1:$XFD$1,\"Yht.\")))","v":4}]
["Peltosirkku","x","x","x",null,"x","x","x","x",null,null,null,"x",null,8]
["Hiirihaukka",null,"x",null,null,null,null,null,null,"x",null,"x",null,null,3]
["Viiriäinen",null,null,null,null,null,null,null,"x",null,"x",null,null,null,{"$f":"COUNTA(OFFSET(B160,0,0,1,COUNTA($B$1:$XFD$1)-COUNTIF($B$1:$XFD$1,\"Yht.\")))","v":2}]
["Käenpiika",null,"x","x",null,"x","x","x",null,null,null,"x","x",null,7]
["Ruisrääkkä","x","x","x",null,"x","x","x","x",null,null,null,"x",null,8]
["Lapasotka",null,"x",null,null,null,"x",null,null,null,null,null,null,"x",3]
["Punasotka","x","x","x",null,"x","x",null,"x",null,null,null,"x",null,7]
["Peukaloinen",null,"x",null,"x","x",null,null,"x",null,null,null,"x",null,5]
["Avosetti",null,null,"x",null,null,"x",null,null,null,null,null,"x",null,3]
["Tundrametsähanhi",null,"x",null,"x",null,null,null,"x",null,null,null,"x",null,4]
["Riskilä",null,null,null,"x","x","x",null,null,null,null,null,"x",null,4]
["Töyhtötiainen",null,null,null,null,null,"x",null,"x",null,null,null,"x",null,3]
["Muuttohaukka","x",null,null,null,null,null,"x","x","x",null,null,null,null,4]
["Pikkutikka",null,null,null,null,null,null,null,"x",null,null,null,null,"x",2]
["Pikkulepinkäinen",null,null,"x",null,"x","x",null,"x","x",null,null,"x",null,6]
["Mustaviklo",null,null,null,null,null,null,null,"x",null,null,"x",null,null,2]
["Rantakurvi",null,null,null,null,null,null,null,null,null,null,null,"x",null,1]
["Karikukko",null,"x",null,"x","x","x",null,"x",null,null,null,null,"x",6]
["Kanahaukka","x","x","x","x","x","x",null,null,null,null,null,"x",null,7]
["Pohjantikka","x","x",null,"x",null,null,null,"x",null,null,null,null,null,4]
["Sarvipöllö",null,"x","x","x",null,null,null,"x",null,null,null,"x",null,5]
["Isolepinkäinen",null,"x",null,"x",null,null,null,null,"x",null,null,null,null,3]
["Isosirri",null,"x",null,null,"x",null,null,null,null,null,null,null,null,2]
["Arosuohaukka",null,null,null,null,null,"x",null,null,null,null,null,null,null,1]
["Pohjansirkku",null,null,null,null,null,null,"x",null,null,null,null,"x",null,2]
["Peltopyy","x",null,null,null,"x","x",null,"x",null,null,"x",null,null,5]
["Piekana",null,null,null,null,null,null,null,null,"x",null,null,null,null,1]
["Pikkusirri",null,null,null,null,null,null,null,null,null,null,null,"x",null,1]
["Isokäpylintu","x",null,null,null,null,null,null,null,null,null,null,null,null,1]
["Satakieli","x","x",null,"x",null,null,null,null,null,null,null,null,null,3]
["Viirupöllö",null,null,"x",null,"x","x",null,null,null,null,null,"x",null,4]
["Härkälintu","x",null,null,"x","x","x",null,null,null,null,null,"x",null,5]
["Tilhi",null,"x",null,null,"x",null,null,null,null,null,null,null,null,2]
["Kangaskiuru","x",null,null,null,null,"x",null,null,null,null,null,null,null,2]
["Huuhkaja",null,null,"x","x",null,null,"x","x",null,null,null,"x",null,{"$f":"COUNTA(OFFSET(B192,0,0,1,COUNTA($B$1:$XFD$1)-COUNTIF($B$1:$XFD$1,\"Yht.\")))","v":5}]
["Palokärki","x",null,null,null,null,"x",null,"x",null,null,null,null,null,3]
["Mehiläishaukka",null,null,null,null,null,null,null,null,null,null,null,"x",null,1]
["Helmipöllö","x",null,null,"x",null,"x",null,null,null,null,null,"x",null,4]
["Ampuhaukka",null,"x",null,null,null,null,null,null,null,null,null,null,null,1]
["Jänkäkurppa",null,null,"x",null,null,null,null,null,null,null,null,null,null,1]
["Punakuiri",null,null,"x","x",null,null,null,null,null,null,null,null,null,2]
["Metso",null,"x",null,null,"x",null,null,null,null,null,null,null,null,2]
["Viitasirkkalintu",null,null,null,null,null,"x",null,null,null,null,null,null,null,1]
["Pensassirkkalintu","x",null,null,null,null,null,"x","x",null,null,null,null,null,3]
["Tundrahanhi",null,null,null,null,null,null,null,"x",null,null,null,null,null,1]
["Lapinpöllö",null,null,null,"x",null,null,null,null,null,null,null,"x",null,2]
["Lyhytnokkahanhi",null,"x",null,null,null,null,null,null,null,null,null,null,null,1]
["Tundrakurmitsa",null,null,null,"x",null,null,null,null,null,null,null,null,null,1]
["Maakotka",null,"x",null,null,"x",null,null,null,null,null,null,null,null,2]
["Lampiviklo",null,null,null,null,null,"x",null,null,null,null,null,null,null,1]
["Idänuunilintu",null,"x",null,"x",null,null,null,"x",null,null,null,"x",null,4]
["Varpuspöllö",null,null,null,null,null,null,null,null,null,null,null,"x",null,1]
["Riekko",null,"x",null,null,null,null,null,null,null,null,null,null,null,1]
["Haahka",null,null,null,"x",null,null,null,null,null,null,null,null,null,1]
["Nokkavarpunen",null,null,null,null,null,"x",null,null,null,null,null,null,null,1]
["Pähkinähakki",null,null,null,null,null,null,null,"x",null,null,null,null,null,1]
["Punajalkahaukka",null,"x",null,null,null,null,null,null,null,null,null,null,null,1]
["Ruokki",null,null,null,"x",null,null,null,null,null,null,null,null,null,1]
["Sepelhanhi",null,null,null,null,null,null,null,"x",null,null,null,null,null,1]
["Vesipääsky",null,"x",null,"x",null,null,null,null,null,null,null,null,null,2]
["Hiiripöllö",null,null,null,"x",null,null,null,null,null,null,null,null,null,1]
["Harmaahaikara",null,"x",null,null,null,null,null,null,null,null,null,null,null,1]
[null,null,null,null,null,null,null,null,null,null,null,null,null,null,0]
[null,null,null,null,null,null,null,null,null,null,null,null,null,null,0]
[null,null,null,null,null,null,null,null,null,null,null,null,null,null,0]
[null,null,null,null,null,null,null,null,null,null,null,null,null,null,0]
[null,null,null,null,null,null,null,null,null,null,null,null,null,null,0]
["Lopputulos",{"$f":"IF(B1<>\"\",\n  INDEX(B:B, MATCH(\"Ponnistustaso\", $A$140:$A$228, 0) + 139) +\n  COUNTA(OFFSET(\n    INDEX(B:B, MATCH(\"Huutolajit\", $A$140:$A$228, 0) + 139),\n    1, 0,\n    MATCH(\"Lopputulos\", $A$145:$A$238, 0) + 144\n    - MATCH(\"Huutolajit\", $A$140:$A$228, 0) - 140,\n    1\n  )),\n\"\")","v":138},{"$f":"IF(C1<>\"\",\n  INDEX(C:C, MATCH(\"Ponnistustaso\", $A$140:$A$228, 0) + 139) +\n  COUNTA(OFFSET(\n    INDEX(C:C, MATCH(\"Huutolajit\", $A$140:$A$228, 0) + 139),\n    1, 0,\n    MATCH(\"Lopputulos\", $A$145:$A$238, 0) + 144\n    - MATCH(\"Huutolajit\", $A$140:$A$228, 0) - 140,\n    1\n  )),\n\"\")","v":154},{"$f":"IF(D1<>\"\",\n  INDEX(D:D, MATCH(\"Ponnistustaso\", $A$140:$A$228, 0) + 139) +\n  COUNTA(OFFSET(\n    INDEX(D:D, MATCH(\"Huutolajit\", $A$140:$A$228, 0) + 139),\n    1, 0,\n    MATCH(\"Lopputulos\", $A$145:$A$238, 0) + 144\n    - MATCH(\"Huutolajit\", $A$140:$A$228, 0) - 140,\n    1\n  )),\n\"\")","v":136},{"$f":"IF(E1<>\"\",\n  INDEX(E:E, MATCH(\"Ponnistustaso\", $A$140:$A$228, 0) + 139) +\n  COUNTA(OFFSET(\n    INDEX(E:E, MATCH(\"Huutolajit\", $A$140:$A$228, 0) + 139),\n    1, 0,\n    MATCH(\"Lopputulos\", $A$145:$A$238, 0) + 144\n    - MATCH(\"Huutolajit\", $A$140:$A$228, 0) - 140,\n    1\n  )),\n\"\")","v":138},{"$f":"IF(F1<>\"\",\n  INDEX(F:F, MATCH(\"Ponnistustaso\", $A$140:$A$228, 0) + 139) +\n  COUNTA(OFFSET(\n    INDEX(F:F, MATCH(\"Huutolajit\", $A$140:$A$228, 0) + 139),\n    1, 0,\n    MATCH(\"Lopputulos\", $A$145:$A$238, 0) + 144\n    - MATCH(\"Huutolajit\", $A$140:$A$228, 0) - 140,\n    1\n  )),\n\"\")","v":146},{"$f":"IF(G1<>\"\",\n  INDEX(G:G, MATCH(\"Ponnistustaso\", $A$140:$A$228, 0) + 139) +\n  COUNTA(OFFSET(\n    INDEX(G:G, MATCH(\"Huutolajit\", $A$140:$A$228, 0) + 139),\n    1, 0,\n    MATCH(\"Lopputulos\", $A$145:$A$238, 0) + 144\n    - MATCH(\"Huutolajit\", $A$140:$A$228, 0) - 140,\n    1\n  )),\n\"\")","v":151},{"$f":"IF(H1<>\"\",\n  INDEX(H:H, MATCH(\"Ponnistustaso\", $A$140:$A$228, 0) + 139) +\n  COUNTA(OFFSET(\n    INDEX(H:H, MATCH(\"Huutolajit\", $A$140:$A$228, 0) + 139),\n    1, 0,\n    MATCH(\"Lopputulos\", $A$145:$A$238, 0) + 144\n    - MATCH(\"Huutolajit\", $A$140:$A$228, 0) - 140,\n    1\n  )),\n\"\")","v":127},{"$f":"IF(I1<>\"\",\n  INDEX(I:I, MATCH(\"Ponnistustaso\", $A$140:$A$228, 0) + 139) +\n  COUNTA(OFFSET(\n    INDEX(I:I, MATCH(\"Huutolajit\", $A$140:$A$228, 0) + 139),\n    1, 0,\n    MATCH(\"Lopputulos\", $A$145:$A$238, 0) + 144\n    - MATCH(\"Huutolajit\", $A$140:$A$228, 0) - 140,\n    1\n  )),\n\"\")","v":152},{"$f":"IF(J1<>\"\",\n  INDEX(J:J, MATCH(\"Ponnistustaso\", $A$140:$A$228, 0) + 139) +\n  COUNTA(OFFSET(\n    INDEX(J:J, MATCH(\"Huutolajit\", $A$140:$A$228, 0) + 139),\n    1, 0,\n    MATCH(\"Lopputulos\", $A$145:$A$238, 0) + 144\n    - MATCH(\"Huutolajit\", $A$140:$A$228, 0) - 140,\n    1\n  )),\n\"\")","v":101},{"$f":"IF(K1<>\"\",\n  INDEX(K:K, MATCH(\"Ponnistustaso\", $A$140:$A$228, 0) + 139) +\n  COUNTA(OFFSET(\n    INDEX(K:K, MATCH(\"Huutolajit\", $A$140:$A$228, 0) + 139),\n    1, 0,\n    MATCH(\"Lopputulos\", $A$145:$A$238, 0) + 144\n    - MATCH(\"Huutolajit\", $A$140:$A$228, 0) - 140,\n    1\n  )),\n\"\")","v":110},{"$f":"IF(L1<>\"\",\n  INDEX(L:L, MATCH(\"Ponnistustaso\", $A$140:$A$228, 0) + 139) +\n  COUNTA(OFFSET(\n    INDEX(L:L, MATCH(\"Huutolajit\", $A$140:$A$228, 0) + 139),\n    1, 0,\n    MATCH(\"Lopputulos\", $A$145:$A$238, 0) + 144\n    - MATCH(\"Huutolajit\", $A$140:$A$228, 0) - 140,\n    1\n  )),\n\"\")","v":107},{"$f":"IF(M1<>\"\",\n  INDEX(M:M, MATCH(\"Ponnistustaso\", $A$140:$A$228, 0) + 139) +\n  COUNTA(OFFSET(\n    INDEX(M:M, MATCH(\"Huutolajit\", $A$140:$A$228, 0) + 139),\n    1, 0,\n    MATCH(\"Lopputulos\", $A$145:$A$238, 0) + 144\n    - MATCH(\"Huutolajit\", $A$140:$A$228, 0) - 140,\n    1\n  )),\n\"\")","v":149},{"$f":"IF(N1<>\"\",\n  INDEX(N:N, MATCH(\"Ponnistustaso\", $A$140:$A$228, 0) + 139) +\n  COUNTA(OFFSET(\n    INDEX(N:N, MATCH(\"Huutolajit\", $A$140:$A$228, 0) + 139),\n    1, 0,\n    MATCH(\"Lopputulos\", $A$145:$A$238, 0) + 144\n    - MATCH(\"Huutolajit\", $A$140:$A$228, 0) - 140,\n    1\n  )),\n\"\")","v":87}]
["Sijoitus",{"$f":"IF(B1<>\"\",RANK(B225,OFFSET($B$225,0,0,1,COUNTA($1:$1)-1))&\".\",\"\")","v":"6."},"1.","8.","6.","5.","3.","9.","2.","12.","10.","11.","4.","13."]
[173]

{"sheet":"Bird Names","index":2,"n_rows":133,"n_cols":2,"rows_kept":133,"cut":false,"hidden":false,"merged":[]}
[131,"Pikkujoutsen"]
[132,"Taigametsähanhi"]
[133,"Tundrametsähanhi"]
[134,"Lyhytnokkahanhi"]
[135,"Tundrahanhi"]
[136,"Kiljuhanhi"]
[137,"Sepelhanhi"]
[138,"   Tiibetinhanhi"]
[139,"Ruostesorsa"]
[140,"Mandariinisorsa"]
[141,"Amerikanhaapana"]
[142,"Punapäänarsku"]
[143,"Punasotka"]
[144,"Lapasotka"]
[145,"Haahka"]
[146,"Allihaahka"]
[147,"Alli"]
[148,"Kuparisorsa"]
[149,"Viiriäinen"]
[150,"Pyy"]
[151,"Riekko"]
[152,"Metso"]
[153,"Peltopyy"]
[154,"Jääkuikka"]
[155,"Pikku-uikku"]
[156,"Härkälintu"]
[157,"Mustakaulauikku"]
[158,"Jalohaikara"]
[159,"Harmaahaikara"]
[160,"Kattohaikara"]
[161,"Mehiläishaukka"]
[162,"Haarahaukka"]
[163,"Arosuohaukka"]
[164,"Niittysuohaukka"]
[165,"Kanahaukka"]
[166,"Hiirihaukka"]
[167,"Piekana"]
[168,"Kiljukotka"]
[169,"Maakotka"]
[170,"Arokotka"]
[171,"Punajalkahaukka"]
[172,"Ampuhaukka"]
[173,"Muuttohaukka"]
[174,"Luhtahuitti"]
[175,"Ruisrääkkä"]
[176,"Liejukana"]
[177,"Avosetti"]
[178,"Tundrakurmitsa"]
[179,"Mustajalkatylli"]
[180,"Keräkurmitsa"]
[181,"Punakuiri"]
[182,"Karikukko"]
[183,"Isosirri"]
[184,"Kuovisirri"]
[185,"Pulmussirri"]
[186,"Pikkusirri"]
[187,"Vesipääsky"]
[188,"Rantakurvi"]
[189,"Mustaviklo"]
[190,"Lampiviklo"]
[191,"Jänkäkurppa"]
[192,"Heinäkurppa"]
[193,"Aropääskykahlaaja"]
[194,"Leveäpyrstökihu"]
[195,"Tunturikihu"]
[196,"Riskilä"]
[197,"Ruokki"]
[198,"Hietatiira"]
[199,"Mustatiira"]
[200,"Riuttatiira"]
[201,"Pikkukajava"]
[202,"Isolokki"]
[203,"Turturikyyhky"]
[204,"Huuhkaja"]
[205,"Hiiripöllö"]
[206,"Varpuspöllö"]
[207,"Viirupöllö"]
[208,"Lapinpöllö"]
[209,"Sarvipöllö"]
[210,"Helmipöllö"]
[211,"Kuningaskalastaja"]
[212,"Mehiläissyöjä"]
[213,"Käenpiika"]
[214,"Palokärki"]
[215,"Valkoselkätikka"]
[216,"Pikkutikka"]
[217,"Pohjantikka"]
[218,"Töyhtökiuru"]
[219,"Kangaskiuru"]
[220,"Lapinkirvinen"]
[221,"Luotokirvinen"]
[222,"Sitruunavästäräkki"]
[223,"Virtavästäräkki"]
[224,"Tilhi"]
[225,"Koskikara"]
[226,"Peukaloinen"]
[227,"Satakieli"]
[228,"Etelänsatakieli"]
[229,"Sinirinta"]
[230,"Sinipyrstö"]
[231,"Mustaleppälintu"]
[232,"Mustapäätasku"]
[233,"Sepelrastas"]
[234,"Pensassirkkalintu"]
[235,"Viitasirkkalintu"]
[236,"Kultarinta"]
[237,"Viitakerttunen"]
[238,"Luhtakerttunen"]
[239,"Rytikerttunen"]
[240,"Rastaskerttunen"]
[241,"Idänuunilintu"]
[242,"Pikkusieppo"]
[243,"Viiksitimali"]
[244,"Pyrstötiainen"]
[245,"Kuusitiainen"]
[246,"Töyhtötiainen"]
[247,"Lapintiainen"]
[248,"Pähkinänakkeli"]
[249,"Pikkulepinkäinen"]
[250,"Mustaotsalepinkäinen"]
[251,"Isolepinkäinen"]
[252,"Kuukkeli"]
[253,"Pähkinähakki"]
[254,"Kirjosiipikäpylintu"]
[255,"Isokäpylintu"]
[256,"Nokkavarpunen"]
[257,"Lapinsirkku"]
[258,"Pulmunen"]
[259,"Peltosirkku"]
[260,"Pohjansirkku"]
[261,"Pikkusirkku"]
[262,"Kultasirkku"]
[263,"Harmaasirkku"]